bitfinex/quotes_BTCUSD_20250718
["timestamp","ask_amount","ask_price","bid_price","bid_amount"]
[1752841077258,0.25313868,119340.0,119330.0,0.84360293]
[1752841077494,0.10230861,119340.0,119330.0,0.84360293]
[1752841077758,4e-05,119340.0,119330.0,1.70909245]
[1752841077969,0.1294,119340.0,119330.0,1.70909245]
[1752841078354,0.1294,119340.0,119330.0,1.19198256]
[1752841079074,0.13777878,119340.0,119330.0,1.13433451]
[1752841079284,0.1294,119340.0,119330.0,1.13433451]
[1752841084333,4e-05,119340.0,119330.0,1.13433451]
[1752841084570,4e-05,119340.0,119330.0,1.21984479]
[1752841085288,4e-05,119340.0,119330.0,1.22084479]
[1752841085490,4e-05,119340.0,119330.0,1.21984479]
[1752841085795,4e-05,119340.0,119330.0,1.22184479]
[1752841086127,4e-05,119340.0,119330.0,1.22284479]
[1752841088447,4e-05,119340.0,119330.0,1.24802461]
[1752841089251,0.12928,119350.0,119340.0,0.20726664]
[1752841089473,0.12928,119350.0,119340.0,0.70100848]
[1752841089676,0.12928,119350.0,119340.0,0.70421848]
[1752841092273,0.12928,119350.0,119340.0,0.70521848]
[1752841100043,0.12747753,119350.0,119340.0,0.70521848]
[1752841100186,8.353e-05,119360.0,119350.0,0.5472505]
[1752841100397,0.12964353,119360.0,119350.0,1.04360234]
[1752841103241,0.13802091,119360.0,119350.0,1.01190234]
[1752841103684,0.14639843,119360.0,119350.0,1.01190234]
[1752841104312,0.15477609,119360.0,119350.0,1.01190234]
[1752841104517,0.14639843,119360.0,119350.0,1.01190234]
[1752841105296,0.13802091,119360.0,119350.0,1.01190234]
[1752841105947,0.14639843,119360.0,119350.0,1.01190234]
[1752841106150,0.14639843,119360.0,119350.0,1.01100418]
[1752841106516,0.14639836,119360.0,119350.0,1.01100418]
[1752841107150,0.14644836,119360.0,119350.0,1.01100418]
[1752841107354,0.12964353,119360.0,119350.0,1.04240418]
[1752841108785,0.12968353,119360.0,119350.0,1.04240418]
[1752841110733,0.13806098,119360.0,119350.0,0.55154234]
[1752841110944,0.1464385,119360.0,119350.0,1.01100418]
[1752841111357,0.13806098,119360.0,119350.0,1.01100418]
[1752841111883,0.12968353,119360.0,119350.0,1.01100418]
[1752841112604,0.12968353,119360.0,119350.0,1.04230418]
[1752841113557,0.00012353,119360.0,119350.0,1.04230418]
[1752841113769,0.12944353,119360.0,119350.0,0.58284234]
[1752841113980,0.12944353,119360.0,119350.0,1.04230418]
[1752841114979,0.12944353,119360.0,119350.0,1.04330418]
[1752841120970,0.12944353,119360.0,119350.0,1.13330418]
[1752841131044,0.12944353,119360.0,119350.0,1.19057522]
[1752841133447,0.12944353,119360.0,119350.0,0.67384234]
[1752841133667,0.12944353,119360.0,119350.0,1.19057522]
[1752841144297,0.12944353,119360.0,119350.0,0.67384234]
[1752841144500,0.12944353,119360.0,119350.0,1.19057522]
[1752841149993,0.12944353,119360.0,119350.0,1.15927522]
[1752841152163,0.12944353,119360.0,119350.0,1.16781472]
[1752841153739,0.16194864,119360.0,119350.0,1.16583472]
[1752841154037,0.16977105,119360.0,119350.0,1.16583472]
[1752841154702,0.74150041,119360.0,119350.0,0.0995395]
[1752841154932,0.74150041,119360.0,119350.0,0.091]
[1752841154933,0.94795296,119360.0,119350.0,0.091]
[1752841155615,0.43122008,119360.0,119350.0,0.28149378]
[1752841155824,0.26365906,119360.0,119350.0,0.81498331]
[1752841156042,0.18660658,119360.0,119350.0,0.81498331]
[1752841156244,0.18660658,119360.0,119350.0,0.81822331]
[1752841156455,0.18660651,119360.0,119350.0,0.81822331]
[1752841156671,0.18660651,119360.0,119350.0,0.81498331]
[1752841156878,0.16985105,119360.0,119350.0,0.82341228]
[1752841157088,0.18660658,119360.0,119350.0,0.76608745]
[1752841157846,0.04882878,119360.0,119350.0,0.76608745]
[1752841158049,0.13794098,119360.0,119350.0,0.77145745]
[1752841158250,0.14631864,119360.0,119350.0,0.77145745]
[1752841158678,0.13794098,119360.0,119350.0,0.77145745]
[1752841159115,0.00012353,119360.0,119350.0,0.80195745]
[1752841159315,0.00012353,119360.0,119350.0,1.14195745]
[1752841159520,0.12956353,119360.0,119350.0,1.11145745]
[1752841161819,0.12956353,119360.0,119350.0,1.12755745]
[1752841162023,0.00012353,119360.0,119350.0,1.14325745]
[1752841162227,0.12952353,119360.0,119350.0,1.14325745]
[1752841165961,0.12952353,119360.0,119350.0,0.6838494]
[1752841166163,0.13790091,119360.0,119350.0,1.14325745]
[1752841166371,0.15465602,119360.0,119350.0,0.6838494]
[1752841166585,0.15465602,119360.0,119350.0,1.11145745]
[1752841166934,0.14627836,119360.0,119350.0,1.11145745]
[1752841167227,0.13790091,119360.0,119350.0,1.11145745]
[1752841167608,0.13790091,119360.0,119350.0,1.12755745]
[1752841167821,0.13790091,119360.0,119350.0,1.14385745]
[1752841168817,0.14627843,119360.0,119350.0,1.14385745]
[1752841169070,0.1462785,119360.0,119350.0,1.14385745]
[1752841169503,0.1462785,119360.0,119350.0,1.12755745]
[1752841169727,0.1462785,119360.0,119350.0,1.11145745]
[1752841170902,0.16308431,119360.0,119350.0,1.10094923]
[1752841171130,0.34644463,119360.0,119350.0,1.10932759]
[1752841171560,0.34644463,119360.0,119350.0,1.11770588]
[1752841171972,0.33064463,119360.0,119350.0,1.11770588]
[1752841172410,0.16308417,119360.0,119350.0,1.1260841]
[1752841172542,0.17146211,119360.0,119350.0,1.1260841]
[1752841172749,0.17146211,119360.0,119350.0,1.1282241]
[1752841172986,0.16308417,119360.0,119350.0,1.1282241]
[1752841173973,0.1463285,119360.0,119350.0,1.1282241]
[1752841174205,0.13790091,119360.0,119350.0,1.1282241]
[1752841174431,0.1462785,119360.0,119350.0,1.1282241]
[1752841174825,0.14627843,119360.0,119350.0,1.1282241]
[1752841175585,0.15465609,119360.0,119350.0,1.1282241]
[1752841176047,0.13790091,119360.0,119350.0,1.1282241]
[1752841176228,0.14627843,119360.0,119350.0,1.1282241]
[1752841176868,0.13790091,119360.0,119350.0,1.1282241]
[1752841177034,0.12952353,119360.0,119350.0,1.1282241]
[1752841177212,0.12952353,119360.0,119350.0,1.1605241]
[1752841178001,0.00012353,119360.0,119350.0,1.1605241]
[1752841178210,0.12932353,119360.0,119350.0,1.1605241]
[1752841179920,0.13770098,119360.0,119350.0,1.1605241]
[1752841180061,0.14607857,119360.0,119350.0,1.1605241]
[1752841180270,0.12932353,119360.0,119350.0,1.1605241]
[1752841180907,0.13770091,119360.0,119350.0,1.1605241]
[1752841181195,0.12932353,119360.0,119350.0,1.1605241]
[1752841182863,0.12932353,119360.0,119350.0,0.70111605]
[1752841182864,0.13770091,119360.0,119350.0,0.70111605]
[1752841183093,0.16283361,119360.0,119350.0,1.1605241]
[1752841183291,0.17121148,119360.0,119350.0,0.66881605]
[1752841183491,0.17121148,119360.0,119350.0,1.1282241]
[1752841183702,0.16283361,119360.0,119350.0,1.1282241]
[1752841185589,0.15445588,119360.0,119350.0,1.1282241]
[1752841186095,0.12932353,119360.0,119350.0,1.1282241]
[1752841186318,0.12932353,119360.0,119350.0,1.1596241]
[1752841187091,0.00012353,119360.0,119350.0,1.1596241]
[1752841187274,0.12944353,119360.0,119350.0,1.1596241]
[1752841187695,0.12940353,119360.0,119350.0,1.1596241]
[1752841187986,0.13778091,119360.0,119350.0,1.1596241]
[1752841188167,0.12940353,119360.0,119350.0,1.1596241]
[1752841189635,0.13778098,119360.0,119350.0,1.1596241]
[1752841190068,0.13778098,119360.0,119350.0,1.1282241]
[1752841190483,0.13778091,119360.0,119350.0,1.1282241]
[1752841190898,0.12940353,119360.0,119350.0,1.1282241]
[1752841191151,0.12940353,119360.0,119350.0,1.1593241]
[1752841191700,0.00012353,119360.0,119350.0,1.24483438]
[1752841191909,0.12936353,119360.0,119350.0,1.70424243]
[1752841192348,0.12936353,119360.0,119350.0,1.24483438]
[1752841192784,0.12936353,119360.0,119350.0,0.78542633]
[1752841192998,0.12936353,119360.0,119350.0,1.70424243]
[1752841193442,0.12944353,119360.0,119350.0,1.70424243]
[1752841194124,0.00012353,119360.0,119350.0,1.24483438]
[1752841194580,0.00012353,119360.0,119350.0,1.70424243]
[1752841195222,0.00012353,119360.0,119350.0,1.24483438]
[1752841196566,0.00012353,119360.0,119350.0,1.70424243]
[1752841196794,0.00012353,119360.0,119350.0,0.78542633]
[1752841197030,0.00012353,119360.0,119350.0,1.24483438]
[1752841198623,0.00012353,119360.0,119350.0,1.70424243]
[1752841199004,0.00012353,119360.0,119350.0,1.83348243]
[1752841200374,0.00012353,119360.0,119350.0,1.83248243]
[1752841200841,0.00012353,119360.0,119350.0,1.83448243]
[1752841201260,0.00012353,119360.0,119350.0,1.83548243]
[1752841206375,0.00012353,119360.0,119350.0,1.37607438]
[1752841207420,0.00012353,119360.0,119350.0,1.37591438]
[1752841209113,0.00012353,119360.0,119350.0,1.83532243]
[1752841209730,0.00012353,119360.0,119350.0,1.70624243]
[1752841209947,0.00012353,119360.0,119350.0,1.83532243]
[1752841212460,0.00012353,119360.0,119350.0,1.82689346]
[1752841216113,0.00012353,119360.0,119350.0,0.77899736]
[1752841216352,0.00012353,119360.0,119350.0,1.36748541]
[1752841216555,0.00012353,119360.0,119350.0,0.77899736]
[1752841216757,0.00012353,119360.0,119350.0,1.23840541]
[1752841218583,0.00012353,119360.0,119350.0,1.36748541]
[1752841219177,0.00012353,119360.0,119350.0,1.37599053]
[1752841220073,0.00012353,119360.0,119350.0,1.83539858]
[1752841227034,0.00012353,119360.0,119350.0,1.70631858]
[1752841227236,0.00012353,119360.0,119350.0,1.83539858]
[1752841231043,0.00012353,119360.0,119350.0,1.94972114]
[1752841231780,0.00012353,119360.0,119350.0,1.95307414]
[1752841233761,0.00012353,119360.0,119350.0,1.94972114]
[1752841237259,0.00012353,119360.0,119350.0,1.82064114]
[1752841237471,0.00012353,119360.0,119350.0,1.94972114]
[1752841244260,0.00012353,119360.0,119350.0,1.82064114]
[1752841244486,0.00012353,119360.0,119350.0,1.94972114]
[1752841244691,0.00012353,119360.0,119350.0,1.82064114]
[1752841244900,0.00012353,119360.0,119350.0,1.94972114]
[1752841245657,0.00324,119370.0,119360.0,0.54723436]
[1752841245859,0.00324,119370.0,119360.0,1.7021633]
[1752841246854,0.00324,119370.0,119360.0,1.6710633]
[1752841247987,0.00324,119370.0,119360.0,1.8001433]
[1752841248193,0.00324,119370.0,119360.0,1.8312433]
[1752841248445,0.00324,119370.0,119360.0,0.79810464]
[1752841248621,0.00324,119370.0,119360.0,1.6710633]
[1752841249525,0.00329,119370.0,119360.0,1.6710633]
[1752841251148,0.01899,119370.0,119360.0,1.6710633]
[1752841251381,0.01899,119370.0,119360.0,1.58356302]
[1752841251610,0.03399,119370.0,119360.0,1.06380369]
[1752841252048,0.04236668,119370.0,119360.0,1.06380369]
[1752841252262,0.05074357,119370.0,119360.0,1.06380369]
[1752841252484,0.03399,119370.0,119360.0,1.06380369]
[1752841252714,0.04236675,119370.0,119360.0,1.06380369]
[1752841252951,0.04236668,119370.0,119360.0,1.06380369]
[1752841253155,0.03399,119370.0,119360.0,1.00653884]
[1752841254413,0.0507435,119370.0,119360.0,1.00653884]
[1752841254933,0.04236668,119370.0,119360.0,1.00653884]
[1752841255462,0.05074357,119370.0,119360.0,1.00653884]
[1752841255666,0.0507435,119370.0,119360.0,1.00653884]
[1752841255883,0.05912053,119370.0,119360.0,1.00653884]
[1752841256027,0.05912053,119370.0,119360.0,0.54723436]
[1752841256237,0.05912053,119370.0,119360.0,1.00653884]
[1752841256571,0.0674977,119370.0,119360.0,1.00653884]
[1752841257358,0.06749763,119370.0,119360.0,1.00653884]
[1752841258282,0.05912053,119370.0,119360.0,1.00653884]
[1752841258760,0.04236668,119370.0,119360.0,1.00653884]
[1752841259137,0.0507435,119370.0,119360.0,1.00653884]
[1752841259353,0.04236668,119370.0,119360.0,1.00653884]
[1752841260393,0.0507435,119370.0,119360.0,1.00653884]
[1752841260890,0.04236668,119370.0,119360.0,1.00653884]
[1752841261095,0.05912053,119370.0,119360.0,1.00653884]
[1752841262096,0.23504398,119370.0,119360.0,0.53047911]
[1752841262308,0.27146193,119370.0,119360.0,0.53047911]
[1752841262545,0.20991345,119370.0,119360.0,0.35454085]
[1752841262802,0.20883833,119360.0,119350.0,0.10688383]
[1752841263049,0.33796833,119360.0,119350.0,0.61445819]
[1752841263257,0.33796833,119360.0,119350.0,0.28283683]
[1752841263467,0.39021386,119360.0,119350.0,0.28899904]
[1752841263680,0.39859166,119360.0,119350.0,0.64575625]
[1752841263891,0.39859166,119360.0,119350.0,0.66251304]
[1752841264384,0.39859166,119360.0,119350.0,0.66451304]
[1752841265037,0.17878539,119360.0,119350.0,0.66551304]
[1752841265273,0.35472372,119360.0,119350.0,0.65713475]
[1752841265496,0.35472372,119360.0,119350.0,0.66551318]
[1752841265782,0.35472372,119360.0,119350.0,0.66551283]
[1752841266030,0.1871634,119360.0,119350.0,0.66551248]
[1752841266280,0.35472372,119360.0,119350.0,0.64875583]
[1752841266782,0.35472372,119360.0,119350.0,0.6319989]
[1752841267648,0.34634613,119360.0,119350.0,0.45604597]
[1752841267868,0.37233506,119360.0,119350.0,0.45604597]
[1752841268512,0.91714982,119360.0,119350.0,0.11604597]
[1752841268709,0.91714982,119360.0,119350.0,0.01754085]
[1752841268923,0.45784534,119360.0,119350.0,0.01754085]
[1752841269380,0.45784534,119360.0,119350.0,0.01654085]
[1752841269993,0.45812534,119360.0,119350.0,0.01654085]
[1752841270580,0.45812534,119360.0,119350.0,0.01454085]
[1752841270803,0.45912534,119360.0,119350.0,0.01454085]
[1752841271140,0.91842982,119360.0,119350.0,0.01454085]
[1752841272319,0.43313641,119360.0,119350.0,0.01454085]
[1752841277561,0.89244089,119360.0,119350.0,0.01454085]
[1752841279068,0.43313641,119360.0,119350.0,0.01454085]
[1752841279963,0.30377641,119360.0,119350.0,0.01454085]
[1752841280139,0.43301641,119360.0,119350.0,0.01454085]
[1752841280809,0.51822418,119360.0,119350.0,0.01454085]
[1752841281768,0.43301641,119360.0,119350.0,0.01454085]
[1752841281976,0.43305641,119360.0,119350.0,0.01454085]
[1752841282084,0.30381641,119360.0,119350.0,0.01454085]
[1752841282288,0.43329641,119360.0,119350.0,0.01454085]
[1752841282727,0.43329641,119360.0,119350.0,0.65817676]
[1752841282933,0.13052,119360.0,119350.0,1.11083626]
[1752841284224,0.12952,119360.0,119350.0,1.11083626]
[1752841284442,0.12952,119360.0,119350.0,1.04372498]
[1752841285123,0.1296,119360.0,119350.0,1.04372498]
[1752841286356,0.13797745,119360.0,119350.0,0.5844205]
[1752841286562,0.13797738,119360.0,119350.0,1.04372498]
[1752841286763,0.1296,119360.0,119350.0,1.04372498]
[1752841290186,0.1296,119360.0,119350.0,0.5844205]
[1752841290389,0.1296,119360.0,119350.0,1.04372498]
[1752841291591,4e-05,119360.0,119350.0,1.04372498]
[1752841291825,0.12964,119360.0,119350.0,1.04372498]
[1752841293921,0.12871594,119360.0,119350.0,1.04372498]
[1752841298761,0.13709332,119360.0,119350.0,1.04372498]
[1752841299076,0.14547084,119360.0,119350.0,1.04372498]
[1752841299264,0.13709332,119360.0,119350.0,0.5844205]
[1752841299476,0.13709332,119360.0,119350.0,1.04372498]
[1752841300110,0.13709332,119360.0,119350.0,1.04326491]
[1752841301887,0.15389843,119360.0,119350.0,0.54990043]
[1752841302073,0.16227616,119360.0,119350.0,0.54990043]
[1752841302312,0.14552077,119360.0,119350.0,1.00920491]
[1752841302531,0.14552077,119360.0,119350.0,1.01136491]
[1752841302717,0.12876594,119360.0,119350.0,1.01136491]
[1752841303017,0.12871594,119360.0,119350.0,1.04316491]
[1752841309526,0.12871594,119360.0,119350.0,1.12867519]
[1752841311210,0.12871594,119360.0,119350.0,1.04316491]
[1752841311338,0.14552091,119360.0,119350.0,1.01136491]
[1752841311552,0.13714332,119360.0,119350.0,1.00920491]
[1752841312113,0.14552084,119360.0,119350.0,1.00920491]
[1752841312322,0.17065417,119360.0,119350.0,0.54990043]
[1752841312509,0.37001512,119360.0,119350.0,0.54679043]
[1752841312976,0.2024548,119360.0,119350.0,0.54679043]
[1752841313150,0.19407672,119360.0,119350.0,0.54679043]
[1752841314353,0.20245466,119360.0,119350.0,0.54679043]
[1752841314561,0.17065466,119360.0,119350.0,0.54679043]
[1752841314761,0.17049885,119360.0,119350.0,0.54679043]
[1752841315388,0.17887672,119360.0,119350.0,0.54679043]
[1752841315755,0.17887672,119360.0,119350.0,0.54989043]
[1752841316199,0.15374346,119360.0,119350.0,1.00919491]
[1752841316552,0.16212119,119360.0,119350.0,1.00919491]
[1752841316762,0.13714346,119360.0,119350.0,1.00919491]
[1752841317236,0.13714346,119360.0,119350.0,1.01115491]
[1752841317869,0.12876594,119360.0,119350.0,1.01115491]
[1752841318085,0.13714339,119360.0,119350.0,1.01115491]
[1752841318274,0.12876594,119360.0,119350.0,1.01115491]
[1752841318487,0.12871594,119360.0,119350.0,1.01115491]
[1752841318972,0.13709332,119360.0,119350.0,1.04235491]
[1752841319204,0.12871594,119360.0,119350.0,1.04235491]
[1752841319867,0.13709332,119360.0,119350.0,1.04235491]
[1752841320929,0.12871594,119360.0,119350.0,1.04235491]
[1752841321465,0.13709332,119360.0,119350.0,1.04235491]
[1752841321687,0.12871594,119360.0,119350.0,1.04235491]
[1752841322102,0.13709332,119360.0,119350.0,1.01115491]
[1752841322304,0.14547084,119360.0,119350.0,1.01115491]
[1752841322574,0.12871594,119360.0,119350.0,1.01115491]
[1752841322799,0.13709332,119360.0,119350.0,1.01115491]
[1752841323014,0.12871594,119360.0,119350.0,1.01115491]
[1752841328766,0.13709332,119360.0,119350.0,1.01115491]
[1752841328985,0.12871594,119360.0,119350.0,1.01115491]
[1752841329209,0.13714346,119360.0,119350.0,0.55185043]
[1752841329423,0.12876594,119360.0,119350.0,1.00919491]
[1752841329644,0.13714346,119360.0,119350.0,1.00919491]
[1752841329858,0.12876594,119360.0,119350.0,1.00919491]
[1752841330077,0.13714332,119360.0,119350.0,1.00919491]
[1752841330304,0.12876594,119360.0,119350.0,1.00919491]
[1752841330527,0.12876594,119360.0,119350.0,0.55185043]
[1752841330752,0.13714332,119360.0,119350.0,1.01115491]
[1752841331398,0.12876594,119360.0,119350.0,1.01115491]
[1752841332232,0.13709346,119360.0,119350.0,1.01115491]
[1752841332744,0.12871594,119360.0,119350.0,1.01115491]
[1752841333582,0.13709339,119360.0,119350.0,1.01115491]
[1752841333794,0.12871594,119360.0,119350.0,1.01115491]
[1752841334012,0.13709346,119360.0,119350.0,0.55185043]
[1752841334226,0.13709339,119360.0,119350.0,1.01115491]
[1752841334433,0.13714339,119360.0,119350.0,1.00919491]
[1752841334762,0.15389892,119360.0,119350.0,1.00919491]
[1752841334963,0.15389892,119360.0,119350.0,1.01115491]
[1752841335486,0.32983725,119360.0,119350.0,0.54151235]
[1752841335698,0.3538598,119360.0,119350.0,0.54679071]
[1752841335906,0.3538598,119360.0,119350.0,0.53841235]
[1752841336123,0.34548214,119360.0,119350.0,0.53003378]
[1752841336334,0.33710427,119360.0,119350.0,0.52165514]
[1752841336543,0.44446411,119360.0,119350.0,0.35408078]
[1752841336971,0.44446411,119360.0,119350.0,0.01408078]
[1752841339553,0.41423654,119360.0,119350.0,0.01408078]
[1752841339767,0.41423654,119360.0,119350.0,0.19003385]
[1752841339977,0.41423654,119360.0,119350.0,0.18165514]
[1752841340227,0.41423654,119360.0,119350.0,0.01408078]
[1752841340882,0.41423654,119360.0,119350.0,0.19003385]
[1752841341102,0.42261448,119360.0,119350.0,0.19841242]
[1752841341549,0.42261448,119360.0,119350.0,0.20679092]
[1752841341779,0.42261448,119360.0,119350.0,0.21516928]
[1752841341982,0.42261448,119360.0,119350.0,0.21516935]
[1752841342553,0.42261448,119360.0,119350.0,0.21840935]
[1752841342786,0.42261448,119360.0,119350.0,0.21003092]
[1752841342964,0.48195471,119360.0,119350.0,0.21003092]
[1752841344110,0.48195471,119360.0,119350.0,0.20165242]
[1752841344657,0.48195471,119360.0,119350.0,0.21003085]
[1752841344869,0.49871045,119360.0,119350.0,0.21840921]
[1752841345077,0.43937022,119360.0,119350.0,0.21840921]
[1752841345272,0.43937022,119360.0,119350.0,0.2267875]
[1752841345480,0.00837752,119360.0,119350.0,0.2289175]
[1752841345739,0.15509305,119360.0,119350.0,0.70482149]
[1752841345940,0.13833752,119360.0,119350.0,0.68822149]
[1752841346172,0.14671511,119360.0,119350.0,0.68822149]
[1752841346528,0.15509284,119360.0,119350.0,0.68822149]
[1752841347014,0.16347071,119360.0,119350.0,0.68822149]
[1752841347833,0.33103103,119360.0,119350.0,0.68822149]
[1752841348068,0.33940897,119360.0,119350.0,0.68822149]
[1752841348256,0.17184865,119360.0,119350.0,0.68822149]
[1752841348663,0.33940946,119360.0,119350.0,0.68822149]
[1752841349035,0.33103187,119360.0,119350.0,0.67146498]
[1752841349253,0.33103187,119360.0,119350.0,0.65470819]
[1752841349459,0.32270414,119360.0,119350.0,0.19540371]
[1752841349702,0.30594833,119360.0,119350.0,0.19540371]
[1752841350078,0.30594833,119360.0,119350.0,0.19327371]
[1752841351057,0.30594833,119360.0,119350.0,0.18489514]
[1752841351279,0.3308053,119360.0,119350.0,0.18165514]
[1752841351498,0.3308053,119360.0,119350.0,0.19003385]
[1752841351733,0.3308053,119360.0,119350.0,0.02245949]
[1752841352194,0.3308053,119360.0,119350.0,0.01408078]
[1752841353056,0.3468053,119360.0,119350.0,0.18165514]
[1752841353313,0.3468053,119360.0,119350.0,0.19003385]
[1752841353535,0.3468053,119360.0,119350.0,0.01408078]
[1752841354317,0.3468053,119360.0,119350.0,0.19003371]
[1752841354853,0.43231558,119360.0,119350.0,0.01408078]
[1752841355063,0.42393757,119360.0,119350.0,0.01408078]
[1752841357090,0.42388757,119360.0,119350.0,0.01408078]
[1752841358566,0.2689706,119360.0,119350.0,0.18165514]
[1752841358676,0.26144854,119360.0,119350.0,0.19841228]
[1752841358882,0.10226553,119360.0,119350.0,0.70677355]
[1752841359088,0.00837752,119360.0,119350.0,0.72052177]
[1752841359303,0.14651518,119360.0,119350.0,1.06052177]
[1752841359717,0.15489298,119360.0,119350.0,1.06052177]
[1752841359972,0.15489291,119360.0,119350.0,1.06052177]
[1752841360172,0.12976,119360.0,119350.0,1.06052177]
[1752841360945,0.13813745,119360.0,119350.0,1.06052177]
[1752841361574,0.13813738,119360.0,119350.0,1.06052177]
[1752841361778,0.14651497,119360.0,119350.0,0.60121729]
[1752841361957,0.1465149,119360.0,119350.0,1.06052177]
[1752841362171,0.14651483,119360.0,119350.0,1.06052177]
[1752841362561,0.15489242,119360.0,119350.0,1.06052177]
[1752841362769,0.14651483,119360.0,119350.0,1.06052177]
[1752841363229,0.12976,119360.0,119350.0,1.06052177]
[1752841372358,0.12976,119360.0,119350.0,0.60121729]
[1752841372567,0.12976,119360.0,119350.0,1.06052177]
[1752841383120,0.12976,119360.0,119350.0,0.69121729]
[1752841383347,0.12976,119360.0,119350.0,1.15052177]
[1752841386793,0.12976,119360.0,119350.0,1.23603205]
[1752841387016,0.12976,119360.0,119350.0,1.69533653]
[1752841387238,0.12976,119360.0,119350.0,1.23603205]
[1752841388101,0.12976,119360.0,119350.0,1.23703205]
[1752841389654,0.12976,119360.0,119350.0,1.23903205]
[1752841390214,0.12976,119360.0,119350.0,1.23870258]
[1752841396469,0.00324,119370.0,119360.0,0.57953436]
[1752841396681,0.00324,119370.0,119360.0,1.5889836]
[1752841396912,0.00324,119370.0,119360.0,1.70338572]
[1752841398874,0.00324,119370.0,119360.0,1.70438572]
[1752841399022,0.00324,119370.0,119360.0,1.58963678]
[1752841400952,0.00324,119370.0,119360.0,1.59063678]
[1752841406235,0.00324,119370.0,119360.0,1.71987678]
[1752841407526,1e-08,119370.0,119360.0,1.71987678]
[1752841411452,1e-08,119370.0,119360.0,1.74543265]
[1752841419048,1e-08,119370.0,119360.0,1.86006643]
[1752841419284,1e-08,119370.0,119360.0,1.86002643]
[1752841426001,1e-08,119370.0,119360.0,2.09959252]
[1752841430654,1e-08,119370.0,119360.0,2.09859252]
[1752841430945,1e-08,119370.0,119360.0,2.10059252]
[1752841431182,1e-08,119370.0,119360.0,2.09959252]
[1752841431408,1e-08,119370.0,119360.0,2.10159252]
[1752841434555,1e-08,119370.0,119360.0,1.97239252]
[1752841434784,1e-08,119370.0,119360.0,2.10155252]
[1752841435999,1e-08,119370.0,119360.0,1.97239252]
[1752841436219,1e-08,119370.0,119360.0,2.10155252]
[1752841438378,5.001e-05,119370.0,119360.0,2.06716252]
[1752841438598,5.001e-05,119370.0,119360.0,1.93800252]
[1752841439077,5.001e-05,119370.0,119360.0,1.94010252]
[1752841439595,1e-08,119370.0,119360.0,1.94010252]
[1752841442572,0.03055001,119370.0,119360.0,1.33280428]
[1752841443918,0.03055001,119370.0,119360.0,1.09323819]
[1752841444559,0.03892683,119370.0,119360.0,0.73869734]
[1752841444739,0.03055001,119370.0,119360.0,0.75323819]
[1752841444943,0.03055001,119370.0,119360.0,1.09323819]
[1752841446078,0.15971001,119370.0,119360.0,1.09323819]
[1752841453736,0.03055001,119370.0,119360.0,1.09323819]
[1752841453940,0.15971001,119370.0,119360.0,0.57679023]
[1752841454176,0.15971001,119370.0,119360.0,0.55387186]
[1752841454384,0.18484096,119370.0,119360.0,1.07869734]
[1752841454634,0.18484096,119370.0,119360.0,1.09323819]
[1752841454858,0.19321813,119370.0,119360.0,1.09323819]
[1752841455291,0.20159537,119370.0,119360.0,1.09323819]
[1752841455493,0.20159537,119370.0,119360.0,0.57679023]
[1752841455631,0.20159537,119370.0,119360.0,1.09323819]
[1752841455882,0.36076483,119370.0,119360.0,1.09323833]
[1752841456263,0.18484131,119370.0,119360.0,1.10999344]
[1752841456472,0.15971001,119370.0,119360.0,1.10999344]
[1752841456680,0.17646365,119370.0,119360.0,1.10999344]
[1752841457525,0.18484068,119370.0,119360.0,1.10999344]
[1752841457916,0.18484061,119370.0,119360.0,1.10999344]
[1752841458389,0.15971001,119370.0,119360.0,1.10999344]
[1752841459095,0.17646386,119370.0,119360.0,1.10999344]
[1752841459297,0.17646379,119370.0,119360.0,1.10999344]
[1752841459504,0.18484089,119370.0,119360.0,1.10999344]
[1752841459728,0.17646379,119370.0,119360.0,1.10999344]
[1752841460170,0.35238752,119370.0,119360.0,0.56841278]
[1752841460382,0.18484124,119370.0,119360.0,0.58516803]
[1752841461354,0.1848411,119370.0,119360.0,0.58316803]
[1752841461686,0.1848411,119370.0,119360.0,1.10061599]
[1752841461871,0.17646372,119370.0,119360.0,1.09861599]
[1752841462072,0.16808676,119370.0,119360.0,1.09861599]
[1752841462272,0.18484054,119370.0,119360.0,1.09961599]
[1752841462595,0.20159481,119370.0,119360.0,0.58316803]
[1752841463033,0.36914158,119370.0,119360.0,1.09961599]
[1752841463236,0.2015953,119370.0,119360.0,1.09961599]
[1752841463658,0.36076511,119370.0,119360.0,0.57479051]
[1752841463958,0.36076511,119370.0,119360.0,1.09961599]
[1752841463959,0.42169752,119370.0,119360.0,1.09961599]
[1752841466631,0.3523878,119370.0,119360.0,1.09961585]
[1752841466835,0.3523878,119370.0,119360.0,0.58316789]
[1752841467025,0.18484152,119370.0,119360.0,0.58316789]
[1752841467888,0.3523878,119370.0,119360.0,0.56641278]
[1752841468106,0.3523878,119370.0,119360.0,0.57479037]
[1752841468313,0.36076511,119370.0,119360.0,0.57479037]
[1752841468728,0.36076511,119370.0,119360.0,0.57479044]
[1752841469162,0.36076511,119370.0,119360.0,0.58316796]
[1752841469378,0.3761846,119370.0,119360.0,1.09961592]
[1752841469567,0.17646428,119370.0,119360.0,1.09961592]
[1752841469983,0.17646428,119370.0,119360.0,0.58316796]
[1752841470192,0.17646428,119370.0,119360.0,1.09961592]
[1752841470407,0.34401056,119370.0,119360.0,1.0912384]
[1752841470740,0.34401056,119370.0,119360.0,1.09961599]
[1752841471230,0.34401056,119370.0,119360.0,0.58316803]
[1752841471437,0.34401056,119370.0,119360.0,1.09961599]
[1752841471855,0.34401056,119370.0,119360.0,0.58316803]
[1752841472266,0.34401056,119370.0,119360.0,1.09961599]
[1752841472553,0.17646428,119370.0,119360.0,1.08243764]
[1752841473092,0.18484152,119370.0,119360.0,1.08243764]
[1752841473913,0.17646428,119370.0,119360.0,1.08243764]
[1752841474132,0.161064,119370.0,119360.0,1.08243764]
[1752841474339,0.12921001,119370.0,119360.0,1.08767764]
[1752841474641,0.12912001,119370.0,119360.0,1.08767764]
[1752841474776,0.12912001,119370.0,119360.0,1.11967764]
[1752841477471,0.12912001,119370.0,119360.0,0.60322968]
[1752841477687,0.12912001,119370.0,119360.0,1.11967764]
[1752841478615,0.12912001,119370.0,119360.0,0.60322968]
[1752841478754,0.12912001,119370.0,119360.0,1.11967764]
[1752841479372,0.12912001,119370.0,119360.0,1.14508449]
[1752841480480,0.12912001,119370.0,119360.0,0.62863653]
[1752841480685,0.12912001,119370.0,119360.0,1.14508449]
[1752841481526,0.12412001,119370.0,119360.0,1.14508449]
[1752841487480,0.12412001,119370.0,119360.0,0.62863653]
[1752841487804,0.14087351,119370.0,119360.0,1.11308449]
[1752841488006,0.13249669,119370.0,119360.0,1.11308449]
[1752841489121,0.14087344,119370.0,119360.0,1.11308449]
[1752841489366,0.14087344,119370.0,119360.0,0.59663653]
[1752841489596,0.35822469,119370.0,119360.0,0.56626376]
[1752841489804,1.04467185,119370.0,119360.0,0.3819477]
[1752841490036,1.0435095,119370.0,119360.0,0.3819477]
[1752841490246,1.04224945,119370.0,119360.0,0.3819477]
[1752841490482,1.04224945,119370.0,119360.0,0.36740685]
[1752841490704,1.04224945,119370.0,119360.0,0.36540685]